Cogmind - Beta 14 @@@ ROGUE MODE // 2024.11.07 @ 23:07:15 Player: Komeiji O. Result: Smashed by cave-in Performance ------------- Evolutions (0) 0 Regions Visited (2) 400 Robots Destroyed (24) 120 Value Destroyed (596) 596 Prototype IDs (0) 0 Alien Tech Used (0) 0 Bonus (0) 0 TOTAL SCORE: 1116 Bonus ------- None Cogmind --------- Core Integrity 0/250 Matter 300/300 Energy 100/100 System Corruption 9% Temperature Cool (2) Movement Treading (160) Location -10/Subcaves Parts ------- > --- POWER (1) -------- (None) > --- PROPULSION (2) --- Light Treads Spiked Treads > --- UTILITY (2) ------ Large Storage Unit Seismic Detector > --- WEAPON (2) ------- Subdweller Beam Cannon > --- INVENTORY (15) --- Subdweller Power Source Subdweller Monowheel Subdweller Monowheel Subdweller Monowheel Subdweller Optics Subdweller Optics Improved Terrain Scanner Light Armor Plating Subdweller Beam Cannon Subdweller Machine Gun Subdweller Machine Gun Grenade Launcher Subdweller Shrapnel Launcher Flamer Peak State ------------ > --- POWER ------------ Light Nuclear Core > --- PROPULSION ------- Light Treads Spiked Treads > --- UTILITY ---------- Large Storage Unit Seismic Detector > --- WEAPON ----------- Subdweller Beam Cannon Makeshift Shrapnel Gun > --- INVENTORY -------- Subdweller Power Source Subdweller Monowheel Subdweller Monowheel Hover Unit Subdweller Optics Subdweller Optics Improved Terrain Scanner Light Armor Plating Particle Gun Subdweller Machine Gun Subdweller Machine Gun Grenade Launcher Subdweller Shrapnel Launcher Flamer [Rating: 16] Favorites ----------- Power Ion Engine Engine Ion Engine Power Core Light Nuclear Core Propulsion Light Treads Treads Light Treads Utility Large Storage Unit Device Seismic Detector Storage Large Storage Unit Protection Light Armor Plating Weapon Assault Rifle Energy Cannon Subdweller Beam Cannon Ballistic Gun Assault Rifle Ballistic Cannon Light Cannon Launcher Grenade Launcher Build | -11 -10 -10 ------- Run | Yrd Mat Sub Slots Evolved . | . . . Power . | . . . Propulsion . | . . . Utility . | . . . Weapon . | . . . Parts Attached 33 | 7 4 22 Power 5 | 1 1 3 Engine 4 | 1 1 2 Core 1 | . . 1 Reactor . | . . . Propulsion 3 | 2 . 1 Treads 3 | 2 . 1 Leg . | . . . Wheel . | . . . Hover . | . . . Flight . | . . . Utility 13 | 2 1 10 Device 6 | 1 . 5 Storage 2 | 1 1 . Processor . | . . . Hackware . | . . . Protection 5 | . . 5 Artifact . | . . . Weapon 12 | 2 2 8 Energy Gun . | . . . Energy Cannon 1 | . . 1 Ballistic Gun 7 | 2 1 4 Ballistic Cannon 1 | . . 1 Launcher 3 | . 1 2 Special Weapon . | . . . Impact Weapon . | . . . Slashing Weapon . | . . . Piercing Weapon . | . . . Special Melee Weapon . | . . . Unidentified Prototypes . | . . . Parts Lost 3 | . . 3 Power 1 | . . 1 Propulsion 1 | . . 1 Utility . | . . . Weapon 1 | . . 1 Highest Loss Streak 2 | . . 2 To Critical Strikes 1 | . . 1 Average Slot Usage (%) 100 | . 100 100 Engine 8 | . 14 6 Core 5 | . . 7 Treads 28 | . 28 28 Device 11 | . 14 10 Storage 14 | . 14 14 Protection 2 | . . 3 Energy Cannon 5 | . . 6 Ballistic Gun 22 | . 27 20 Peak Build Rating 16 | 7 8 16 Average Rating 12 | 5 7 13 On Entrance 5 | . 7 8 Naked Turns . | . . . Heaviest Build 38 | 15 31 38 Greatest Support 40 | 40 40 40 Greatest Overweight (x) 1 | . . 1 Average Overweight (x) . | . . . Largest Inventory Capacity 15 | 8 15 15 Average Capacity 14 | 7 12 15 Most Carried 15 | 5 13 15 Average Carried 13 | 3 9 14 Final Capacity 15 | 8 15 15 Final Carried 14 | 5 13 14 Class Distribution -------------------- 100% | Mutant Dominant Class ---------------- Mutant | -10/Materials Mutant | -10/Subcaves Resources | -11 -10 -10 ----------- Run | Yrd Mat Sub Matter Collected 1015 | 219 276 520 Remotely . | . . . Salvage Created 602 | 27 324 251 Parts 36 | 2 22 12 Haulers Intercepted . | . . . Recyclers Shooed . | . . . Parts Field Recycled . | . . . Retrieved Matter . | . . . Parts Self-Destructed 13 | . . 13 Prevented . | . . . Kills | -11 -10 -10 ------- Run | Yrd Mat Sub Combat Hostiles Destroyed 20 | . 10 10 Guns 18 | . 10 8 AOE 2 | . . 2 Classes Destroyed 5 | 1 3 1 Tunneler 3 | 1 2 . Watcher 1 | . 1 . Swarmer 8 | . 6 2 Grunt 4 | . 4 . Subdweller 8 | . . 8 Best Kill Streak 4 | 1 4 2 Combat Bots Only 3 | . 3 2 Max Kills in Single Turn 1 | 1 1 1 Gunslinging . | . . . Exploded 1 | . . 1 Melee . | . . . Uniques/NPCs Destroyed . | . . . Combat | -11 -10 -10 -------- Run | Yrd Mat Sub Hostile Shots Fired 98 | . 46 52 Missed 32 | . 11 21 Damage Taken 1154 | . 338 816 Core 252 | . 49 203 Absorbed by Shields . | . . . Core Remaining (%) 100 | 100 . . Volleys Fired 93 | 3 31 59 Largest 2 | 2 2 2 Hottest 104 | 40 50 104 Shots Fired 158 | 6 62 90 Gun 124 | 6 61 57 Cannon 26 | . . 26 Launcher 8 | . 1 7 Special . | . . . Kinetic 129 | 6 61 62 Thermal 21 | . . 21 Explosive 8 | . 1 7 Electromagnetic . | . . . Robot Hit Streak 16 | 6 10 16 Robot Miss Streak 4 | . 4 1 Penetration Max . | . . . Secondary Targets . | . . . Shots Hit Robots 83 | 6 31 46 Core Hits 42 | 1 18 23 Critical Kills . | . . . Critical Parts Destroyed . | . . . Critical Strikes . | . . . Melee Attacks . | . . . Impact . | . . . Slashing . | . . . Piercing . | . . . Sneak Attacks . | . . . Combat Hostiles . | . . . Follow-up Attacks . | . . . Damage Inflicted 1563 | 80 423 1060 Guns 1385 | 80 393 912 Cannons 55 | . . 55 Explosions 123 | . 30 93 Melee . | . . . Ramming . | . . . Kinetic 1385 | 80 393 912 Thermal 55 | . . 55 Explosive 123 | . 30 93 Electromagnetic . | . . . Impact . | . . . Slashing . | . . . Piercing . | . . . Highest Corruption . | . . . Average Corruption . | . . . Corruption Purged . | . . . Corruption Blocked . | . . . Overload Shots . | . . . Overflow Damage . | . . . Projectiles . | . . . Explosions . | . . . Melee . | . . . Knockbacks . | . . . Impact . | . . . Kinetic . | . . . Secondary . | . . . Self-Inflicted Damage . | . . . Shots . | . . . Rammed . | . . . Targets Rammed . | . . . Kicked . | . . . Crushed . | . . . Highest Temperature 24 | . 15 24 Average Temperature 10 | . 5 11 Received Heat Transfer 150 | . 117 33 Siege Activations . | . . . Robots Corrupted . | . . . Combat Hostiles . | . . . Parts Fried . | . . . Impact Corruptions . | . . . Robots Melted . | . . . Combat Hostiles . | . . . Parts Melted . | . . . Heat Transferred 74 | . . 74 Parts Sabotaged . | . . . Parts Stolen . | . . . Parts Stripped . | . . . Power Chain Reactions . | . . . Alert | -11 -10 -10 ------- Run | Yrd Mat Sub Peak Influence 285 | 5 285 . Initial 3 | . 3 . Average 92 | 1 102 . Maximum Alert Level 1 | . 1 . Low Security (%) 90 | 100 89 . Level 1 9 | . 10 . Level 2 . | . . . Level 3 . | . . . Level 4 . | . . . Level 5 . | . . . High Security . | . . . Max Security . | . . . Squads Dispatched 2 | . 2 . Investigation . | . . . Extermination . | . . . Reinforcement 2 | . 2 . Assault . | . . . Garrison . | . . . Intercept . | . . . Searches Triggered . | . . . Construction Impeded . | . . . Haulers Reinforced . | . . . Active Scanning Responses . | . . . Cargo Convoy Interrupts . | . . . Stealth | -11 -10 -10 --------- Run | Yrd Mat Sub Distress Signals 2 | . 2 . Communications Jammed . | . . . Distress Signals . | . . . Times Spotted 40 | . 25 15 Peak Tracking Total 6 | . 6 2 Tactical Retreats 4 | . 2 2 Traps | -11 -10 -10 ------- Run | Yrd Mat Sub Traps Triggered . | . . . Indirectly . | . . . Trap Hack Attempts . | . . . Triggered . | . . . Disarmed . | . . . Reprogrammed . | . . . Reused . | . . . Traps Extracted . | . . . Installed . | . . . Triggered 2 | . . 2 Machines | -11 -10 -10 ---------- Run | Yrd Mat Sub Machines Disabled 1 | . 1 . Max in Single Turn 1 | . 1 . Machines Repaired . | . . . Machines Dismantled . | . . . Machines Sabotaged . | . . . Overloaded Fab Kills . | . . . Hacking | -11 -10 -10 --------- Run | Yrd Mat Sub Machines Accessed 3 | . 3 . Terminals 3 | . 3 . Fabricators . | . . . Repair Stations . | . . . Recycling Units . | . . . Scanalyzers . | . . . Garrison Access . | . . . Total Hacks 10 | . 10 . Successful 3 | . 3 . Failed 7 | . 7 . Catastrophic 1 | . 1 . Database Lockouts . | . . . Manual 4 | . 4 . Terminals 10 | . 10 . Fabricators . | . . . Repair Stations . | . . . Recycling Units . | . . . Scanalyzers . | . . . Garrison Access . | . . . Terminal Hacks 2 | . 2 . Locate Traps 2 | . 2 . Fabricator Hacks . | . . . Repair Station Hacks . | . . . Recycling Unit Hacks . | . . . Scanalyzer . | . . . Garrison Access Hacks . | . . . Unauthorized Hacks 1 | . 1 . Terminals 1 | . 1 . Operators 1 | . 1 . Fabricators . | . . . Repair Stations . | . . . Recycling Units . | . . . Scanalyzers . | . . . Garrison Access . | . . . Data Cores Recovered . | . . . Used . | . . . Hacking Detections 3 | . 3 . Full Trace Events . | . . . Feedback Events . | . . . Feedback Blocked . | . . . Robot Schematics Acquired . | . . . Robots Built . | . . . Authchips . | . . . Time . | . . . Total Robot Build Rating . | . . . Part Schematics Acquired . | . . . Parts Built . | . . . Authchips . | . . . Time . | . . . Total Part Build Rating . | . . . Parts Repaired . | . . . Time . | . . . Parts Recycled . | . . . Recycled Matter . | . . . Retrieved Matter . | . . . Retrieved Components . | . . . Parts Scanalyzed . | . . . Part Schematics Acquired . | . . . Parts Damaged . | . . . Bothacking | -11 -10 -10 ------------ Run | Yrd Mat Sub Used RIF Installer . | . . . Robots Hacked . | . . . Non-combat . | . . . Combat . | . . . Robot Hacks Applied . | . . . Relay Couplers Released . | . . . Fabnet Peak Effective % . | . . . Robots Rewired . | . . . Allies Hacked . | . . . Hacks Repelled . | . . . Allies | -11 -10 -10 -------- Run | Yrd Mat Sub Total Allies . | . . . Largest Group . | . . . Highest-Rated Group . | . . . Highest-Rated Ally . | . . . Total Orders . | . . . Ally Attacks . | . . . Total Damage . | . . . Kills . | . . . Allies Corrupted . | . . . Allies Melted . | . . . Intel | -11 -10 -10 ------- Run | Yrd Mat Sub Robot Analysis Total . | . . . Derelict Logs Recovered 1 | . . 1 Drone Launches . | . . . Drone Recoveries . | . . . Exploration | -11 -10 -10 ------------- Run | Yrd Mat Sub Turns Passed 4116 | 109 968 3039 Spaces Moved 2239 | 57 506 1676 Core 6 | 6 . . Treads 2233 | 51 506 1676 Legs . | . . . Wheels . | . . . Hover . | . . . Flight . | . . . Fastest Speed 50 | 50 160 160 Average Speed 159 | 148 160 160 Slowest Speed 240 | 160 160 240 Overloaded Moves . | . . . Propulsion Burnouts . | . . . Robots Hopped . | . . . Cave-ins Triggered 1 | . . 1 Exploration Rate (%) 48 | 4 58 84 Regions Visited 2 Branch Regions 1 Pre-discovered Areas 1 | . . 1 Known Exits Taken . | . . . Unknown Exits Taken 2 | 1 1 . Scrap Searched 3 | . . 3 Spaces Dug 21 | . . 21 Terrain Destroyed 31 | . 1 30 Melee . | . . . Projectile 12 | . . 12 AOE 19 | . 1 18 Terrain Rammed . | . . . Walls Destroyed . | . . . Machines Disabled . | . . . Actions | -11 -10 -10 --------- Run | Yrd Mat Sub Total 2616 | 73 603 1940 Wait 207 | . 49 158 Move 2236 | 56 505 1675 Hop . | . . . Pick Up 30 | 7 10 13 Fast Attach 6 | 5 . 1 Attach 3 | 2 . 1 Detach . | . . . Swap 24 | . 4 20 Drop 17 | . 4 13 Fire 93 | 3 31 59 Melee . | . . . Ram . | . . . Kick . | . . . Crush . | . . . Escape Stasis . | . . . Rewire . | . . . Trap . | . . . Miscellaneous . | . . . Route ------- -11/Scrapyard -10/Materials (discovered 3 exits: [*Mat] / [*Min] / [*Sub]) -10/Subcaves (discovered 2 exits: [*Mat x2]) History --------- Turn | Location | Event 19 | -11/Scrapyard | Discovered new exit (range 16) 110 | -11/Scrapyard | Entered Materials 266 | -10/Materials | Discovered new exit (range 15) 301 | -10/Materials | Build established: Mutant 535 | -10/Materials | Discovered new exit (range 13) 1064 | -10/Materials | Discovered new exit (range 8) 1078 | -10/Materials | Entered Subcaves 1286 | -10/Subcaves | Learned location of Storage (-9) 2003 | -10/Subcaves | Disturbed a concealed Subdweller 2005 | -10/Subcaves | Core integrity fell below 50% 2101 | -10/Subcaves | Core integrity fell below 20% 2622 | -10/Subcaves | Shifting Twisted Machinery released Sub. Optics 2623 | -10/Subcaves | Shifting Twisted Machinery released Sub. Beam Cannon 3812 | -10/Subcaves | Discovered new exit (range 14) 3910 | -10/Subcaves | Shifting Twisted Machinery released Sub. Laser 3927 | -10/Subcaves | Shifting Twisted Machinery released Sub. Beam Cannon 3932 | -10/Subcaves | Discovered new exit (range 5) 4117 | -10/Subcaves | Crushed by falling debris 4117 | -10/Subcaves | Smashed by cave-in Last Messages --------------- 02645_ Acquired Sub. Optics. 02684_ Critical hit (Destroy). 02684_ Lgt. Treads destroyed. 02729_ 8S-AO8(R) destroyed. 02734_ Acquired 36 matter. 02737_ Dropped Hover Unit. 02738_ Acquired Sub. Monowheel. 02809_ Acquired 19 matter. 03812_ EXIT=FOUND 03836_ Dropped Particle Gun. 03846_ Acquired Sub. Beam Cannon. Sub. Laser falls loose from the Twisted Machinery. Sub. Beam Cannon falls loose from the Twisted Machinery. 03932_ EXIT=FOUND 04117_ The unstable cave ceiling collapses. 04117_ Crushed by falling debris. 04117_ Lgt. Nuclear Core destroyed. 04117_ System corrupted by crushing effect (+4). 04117_ Mak. Shrapnel Gun destroyed. 04117_ System corrupted by crushing effect (+5). Map ----- +----------------------------------------------------+ | ?????????????????????????????????????????????????? | | ?????????????????????????????????????????????????? | | ?????????????????????????????????????????????????? | | ?????????????????????????????????????????????????? | | ?????????????????????????????????????????????????? | | ?????????????????????????????????????????????????? | | ?????????????????????????????????????????????????? | | ?????????????????????????????????????????????????? | | ?????????????????????????????????????????????????? | | ????????????????????????????????????????????????## | | ????????????????????????????????????????????????# | | ????????????????????????????????????????????????## | | ?????????????????????????????????????????????????# | | ???????????????????????????????????????????????### | | ??????????????????????????????????????###????### " | | ??????????????????????????#####???????# ###### | | ??????????????????????????# ######### | | ??????????????????????????# | | ??????????????????????????## ##### # # # | | ??????????????????????????## #???## ##### # | | ?????????????????????????## #????# #???# ## | | ????????????????????????## # ##???# #???## #? | | ???????????????????????## # #???# #????# ? | | ???????????????????????# ##### # ##### #???? | | ??????????????????????# # ;#???# # ???? | | ??????????????????????###@;#??## ###?## ??? | | ????????????????????????#;##??# #?????#???# | | ????????????????????????#;#???# #?????????# | | ????????????????????????###???# ##?????????# | | ??????????????????????????????#### #????????? | | ??????????????????????????????????##????????? ### | | ????????????????????????????????????????????? ??? | | ?????????????????????????????????????????????? ??? | | ?????????????????????????????????????????????? ??? | | ?????????????????????????????????????????????????? | | ?????????????????????????????????????????????????? | | ?????????????????????????????????????????????????? | | ?????????????????????????????????????????????????? | | ?????????????????????????????????????????????????? | | ?????????????????????????????????????????????????? | | ?????????????????????????????????????????????????? | | ?????????????????????????????????????????????????? | | ?????????????????????????????????????????????????? | | ?????????????????????????????????????????????????? | | ?????????????????????????????????????????????????? | | ?????????????????????????????????????????????????? | | ?????????????????????????????????????????????????? | | ?????????????????????????????????????????????????? | | ?????????????????????????????????????????????????? | | ??????????????????????##?????????????????????????? | +----------------------------------------------------+ Best States ------------- Heat Dissipation 25 Energy Generation 15 Energy Capacity 250 Matter Stores 300 Matter Capacity 300 Sight Range 16 Terrain Scan Density 10 Armor Coverage 150 Evasion (%) 40 Recoil Reduction 2 Item Schematics ----------------- None Robot Schematics ------------------ None Fabricated ------------ Nothing Alien Tech Used ----------------- None Achievements -------------- None Challenges ------------ None Game ------ Seed ProtonWeaponsBooster Manual? 0 Play Time 00:32:43 Cumulative 142.2 hours Start 2024.11.07 @ 22:42:09 End 2024.11.07 @ 23:07:15 Sessions 1 Manual Loads 0 Difficulty Rogue Special Mode None Game No. 52 Rogue 51 Adventurer 1 Explorer 0 Win Type - Total 2 Types 2/0/0/0/0/0/0/0/0 Lore% 40 Gallery% 58 Achievement% 48 Wizard Run 0 Options --------- Layout 0 ASCII 1 Keyboard 1 Movement Vi Keybinds 0 Fullscreen 2 Font 36/Terminus++ Map View 76x50 Zoom Use 0% Tactical HUD 1 Map Filters NONE Filters NONE Steam 1 RUN: bde9680a-3ee7-4cff-8aec-c06b7b3888ac